bitfinex/quotes_SOLUSD_20260305
["timestamp","ask_amount","ask_price","bid_price","bid_amount"]
[1772733283875,0.78379921,88.258,88.205,0.82460991]
[1772733284095,0.78379921,88.257,88.205,0.82460991]
[1772733284800,0.78379921,88.257,88.192,28.34723625]
[1772733284801,0.78379921,88.255,88.206,12.16170715]
[1772733285401,0.78379921,88.255,88.207,0.82460991]
[1772733286073,0.78379921,88.255,88.208,1.10893305]
[1772733286277,0.78379921,88.255,88.21,0.82460991]
[1772733286476,0.78379921,88.255,88.21,1.10893305]
[1772733286690,0.78379921,88.255,88.212,1.10893305]
[1772733286897,11.33093117,88.254,88.215,0.82460991]
[1772733287282,0.78379921,88.253,88.215,0.82460991]
[1772733288791,11.33118796,88.252,88.216,11.33581209]
[1772733288987,11.33118796,88.252,88.217,0.82460991]
[1772733289393,0.78379921,88.262,88.217,0.82460991]
[1772733289589,0.78379921,88.26,88.217,0.82460991]
[1772733290904,0.78379921,88.258,88.2,0.82460991]
[1772733292905,0.78379921,88.256,88.201,12.16234984]
[1772733293206,0.78379921,88.256,88.201,0.82460991]
[1772733294880,0.78379921,88.249,88.201,0.82460991]
[1772733295685,0.78379921,88.247,88.201,0.82460991]
[1772733298510,0.78379921,88.245,88.201,0.82460991]
[1772733299010,0.78379921,88.245,88.203,0.82460991]
[1772733299190,39.66185435,88.246,88.203,0.82460991]
[1772733299385,40.44565356,88.246,88.203,0.82460991]
[1772733299606,0.78379921,88.245,88.203,0.82460991]
[1772733299810,11.33195838,88.246,88.204,0.82460991]
[1772733300008,12.19357837,88.246,88.205,0.82460991]
[1772733300309,12.19357837,88.246,88.196,0.80068063]
[1772733300310,0.86161999,88.245,88.196,0.80068063]
[1772733300485,0.86161999,88.229,88.178,0.80068063]
[1772733300686,0.86161999,88.228,88.178,0.80068063]
[1772733300883,0.86161999,88.228,88.176,1.04086233]
[1772733300884,0.86161999,88.219,88.176,1.04086233]
[1772733301303,0.86161999,88.219,88.063,24.97212012]
[1772733301304,0.86161999,88.209,88.151,11.34417079]
[1772733301707,0.86161999,88.209,88.152,0.28432314]
[1772733301894,0.86161999,88.209,88.151,39.70459778]
[1772733302501,11.33684019,88.208,88.154,0.28432314]
[1772733302887,11.33684019,88.208,88.155,0.80068063]
[1772733303493,0.86161999,88.207,88.155,0.80068063]
[1772733304502,0.86161999,88.205,88.157,0.80068063]
[1772733305099,0.86161999,88.205,88.143,28.36290469]
[1772733305100,0.86161999,88.205,88.151,11.34417079]
[1772733305414,0.86161999,88.205,88.154,0.80068063]
[1772733306003,11.33709724,88.206,88.154,0.80068063]
[1772733306409,12.19871723,88.206,88.154,0.80068063]
[1772733306712,0.86161999,88.205,88.154,0.80068063]
[1772733306923,0.86161999,88.203,88.157,0.80068063]
[1772733307420,12.19796441,88.212,88.159,0.80068063]
[1772733307618,0.86161999,88.211,88.161,0.80068063]
[1772733308613,0.86161999,88.209,88.153,0.80068063]
[1772733308925,0.86161999,88.207,88.156,0.80068063]
[1772733310321,11.61424639,88.2,88.15,62.30425438]
[1772733310622,0.86161999,88.199,88.15,50.96]
[1772733310809,39.68793939,88.188,88.15,50.96]
[1772733311013,0.86161999,88.187,88.15,50.96]
[1772733311802,0.86161999,88.187,88.151,11.34417079]
[1772733312726,0.86161999,88.187,88.151,12.14485142]
[1772733313221,0.86161999,88.185,88.151,0.80068063]
[1772733313424,0.86161999,88.179,88.13,1.01134378]
[1772733313632,0.86161999,88.169,88.13,1.01134378]
[1772733314026,1.00378156,88.169,88.112,0.80068063]
[1772733314231,0.86161999,88.159,88.114,11.34888891]
[1772733314441,0.86161999,88.168,88.122,0.80068063]
[1772733314614,0.86161999,88.168,88.119,0.80068063]
[1772733314936,0.86161999,88.149,88.11,0.1]
[1772733315114,0.86161999,88.139,88.11,0.1]
[1772733315321,0.86161999,88.137,88.11,0.1]
[1772733315713,0.86161999,88.137,88.05,102.0]
[1772733315906,0.86161999,88.129,88.072,11.35421949]
[1772733316110,0.86161999,88.129,88.073,0.28432314]
[1772733316739,0.86161999,88.119,88.07,11.35460429]
[1772733317441,0.86161999,88.117,88.07,11.35460429]
[1772733317642,0.86161999,88.117,88.059,28.38997747]
[1772733317932,0.86161999,88.117,88.066,0.60363335]
[1772733318310,0.86161999,88.117,88.059,28.38997747]
[1772733318526,0.86161999,88.109,88.057,0.60572218]
[1772733318721,0.86161999,88.109,88.057,11.96197246]
[1772733319323,0.86161999,88.109,88.038,0.60778702]
[1772733319324,0.86161999,88.097,88.038,0.60778702]
[1772733320437,1.14594313,88.089,88.028,0.60982814]
[1772733320625,0.86161999,88.088,88.027,11.969979]
[1772733320932,0.86161999,88.088,88.028,0.60390395]
[1772733321328,0.86161999,88.088,88.031,0.60390395]
[1772733321629,0.86161999,88.086,88.034,0.60390395]
[1772733321837,0.86161999,88.098,88.04,0.59804781]
[1772733322012,0.86161999,88.098,88.042,0.59804781]
[1772733322414,40.00333947,88.119,88.051,0.59804781]
[1772733322415,0.86161999,88.109,88.051,0.59804781]
[1772733323528,0.86161999,88.107,88.054,0.59225893]
[1772733325136,39.72397511,88.108,87.904,38.14878113]
[1772733325137,11.65719316,88.08,87.904,38.14878113]
[1772733325341,3.69383402,88.105,87.904,38.14878113]
[1772733325342,0.86161999,88.059,87.975,0.58087987]
[1772733325639,0.86161999,88.059,87.925,51.04]
[1772733325640,3.69383402,88.067,87.954,0.58087987]
[1772733325641,0.86161999,87.999,87.954,0.58087987]
[1772733327037,0.86161999,87.999,87.948,11.3703552]
[1772733327240,0.86161999,87.979,87.93,0.56976071]
[1772733327741,11.65719316,88.02,87.941,0.56429674]
[1772733327742,0.82454872,87.987,87.941,0.56429674]
[1772733328436,0.82454872,87.992,87.941,0.56429674]
[1772733329026,11.36461642,87.993,87.941,0.56429674]
[1772733329243,0.82454872,88.004,87.948,0.55355634]
[1772733329629,0.82454872,88.002,87.951,0.55355634]
[1772733331627,11.36350723,88.001,87.954,0.53790394]
[1772733332245,0.80274553,88.0,87.954,0.53790394]
[1772733332440,11.36296067,88.006,87.954,0.53790394]
[1772733333226,0.80274553,88.021,87.961,0.52776636]
[1772733333435,11.36130115,88.019,87.973,0.52776636]
[1772733333728,28.40031451,88.028,87.976,0.52776636]
[1772733334130,0.80274553,88.029,87.976,0.52776636]
[1772733334340,28.39662818,88.039,87.993,0.86133372]
[1772733334928,0.28432314,88.057,87.975,0.28432314]
[1772733334929,1.13593765,88.038,87.976,0.86133372]
[1772733335225,11.68743856,88.03,87.976,0.86133372]
[1772733335430,1.13593765,88.029,87.976,0.86133372]
[1772733335938,39.76007633,88.028,87.999,0.70861032]
[1772733336146,1.13593765,88.027,87.999,0.70861032]
[1772733336333,0.80274553,88.026,87.999,0.70861032]
[1772733337152,39.76007633,88.028,87.999,0.70861032]
[1772733337332,11.36002181,88.028,87.999,1.56994404]
[1772733337934,11.35924756,88.034,88.0,11.36363636]
[1772733338153,0.80274553,88.033,88.0,11.36363636]
[1772733338531,11.35924756,88.034,88.0,11.36363636]
[1772733339045,0.80274553,88.033,88.0,11.36363636]
[1772733339642,0.80274553,88.056,88.0,39.77272726]
[1772733339947,0.80274553,88.054,88.001,5.10909883]
[1772733340248,0.80274553,88.054,88.003,0.28432314]
[1772733340446,0.80274553,88.054,88.004,0.43819544]
[1772733340648,11.35679647,88.053,88.004,0.43819544]
[1772733340851,11.68743856,88.08,88.004,0.43819544]
[1772733340852,0.80274553,88.078,88.013,4.82477569]
[1772733341153,0.80274553,88.077,88.022,0.43627951]
[1772733341538,0.80274553,88.077,88.033,0.43627951]
[1772733342032,0.80274553,88.077,88.032,0.28432314]
[1772733342033,0.80274553,88.078,88.035,0.43438559]
[1772733342237,0.80274553,88.076,88.003,0.43438559]
[1772733342439,0.80274553,88.074,88.003,0.43438559]
[1772733342763,0.80274553,88.072,88.003,0.43438559]
[1772733343061,0.80274553,88.07,88.01,0.57467499]
[1772733343359,0.80274553,88.07,88.013,0.43251342]
[1772733343743,0.80274553,88.07,88.012,0.28432314]
[1772733343744,0.80274553,88.068,88.016,0.43251342]
[1772733343944,1.13593765,88.078,88.016,0.43251342]
[1772733343945,0.80274553,88.078,88.016,0.43251342]
[1772733344165,11.35396105,88.075,88.016,0.43251342]
[1772733344456,0.80274553,88.074,88.023,0.44000348]
[1772733344652,0.80274553,88.074,88.027,3.69383402]
[1772733344952,0.80274553,88.074,88.024,4.82477569]
[1772733344953,0.80274553,88.094,88.039,3.69383402]
[1772733345258,0.80274553,88.094,88.041,0.44740383]
[1772733345440,11.34906313,88.113,88.056,0.86133372]
[1772733345842,0.28432314,88.129,88.059,0.86133372]
[1772733346048,1.13593765,88.128,88.059,0.86133372]
[1772733346254,1.13593765,88.128,88.062,0.86133372]
[1772733347341,0.80274553,88.125,88.065,0.86133372]
[1772733347539,0.80274553,88.124,88.065,0.86133372]
[1772733347745,0.80274553,88.125,88.072,0.86133372]
[1772733347955,1.13593765,88.135,88.072,0.86133372]
[1772733348153,11.3450717,88.144,88.086,0.86133372]
[1772733348357,11.3450717,88.144,88.092,0.86133372]
[1772733348358,0.80274553,88.143,88.092,0.86133372]
[1772733348655,0.80274553,88.141,88.085,1.00349529]
[1772733349167,0.80274553,88.139,88.085,1.00349529]
[1772733349342,0.80274553,88.137,88.085,1.00349529]
[1772733349547,0.80274553,88.134,88.086,11.35254183]
[1772733350261,0.80274553,88.134,88.088,0.86133372]
[1772733351445,0.80274553,88.134,88.09,0.28432314]
[1772733351645,0.2,88.16,88.097,3.69383402]
[1772733351849,0.80274553,88.159,88.103,0.86133372]
[1772733352245,0.2,88.16,88.112,1.00349529]
[1772733352437,0.2,88.16,88.112,0.86133372]
[1772733352862,11.34314136,88.159,88.112,0.86133372]
[1772733353074,0.80274553,88.158,88.112,0.86133372]
[1772733353642,0.80274553,88.158,88.111,0.14216157]
[1772733353643,0.80274553,88.158,88.115,0.86133372]
[1772733354043,0.80274553,88.179,88.123,0.86133372]
[1772733354260,11.34120318,88.175,88.123,0.86133372]
[1772733354459,0.80274553,88.173,88.113,40.58305468]
[1772733354649,0.80274553,88.171,88.114,0.28432314]
[1772733354849,0.80274553,88.169,88.114,0.28432314]
[1772733355064,0.80274553,88.167,88.114,0.28432314]
[1772733355251,0.80274553,88.165,88.114,0.28432314]
[1772733355453,0.80274553,88.163,88.114,0.28432314]
[1772733355654,0.80274553,88.161,88.108,0.86133372]
[1772733355960,0.80274553,88.159,88.108,0.86133372]
[1772733356164,0.80274553,88.157,88.108,0.86133372]
[1772733356463,0.80274553,88.155,88.095,11.35138203]
[1772733356645,0.80274553,88.149,88.095,11.35138203]
[1772733356951,0.80274553,88.147,88.095,11.35138203]
[1772733357149,0.80274553,88.145,88.095,11.35138203]
[1772733357349,0.80274553,88.143,88.095,11.35138203]
[1772733357568,0.80274553,88.139,88.086,12.21387555]
[1772733357767,39.70955297,88.14,88.086,12.21387555]
[1772733357768,0.80274553,88.137,88.087,0.86133372]
[1772733358269,0.80274553,88.135,88.087,0.86133372]
[1772733358766,0.80274553,88.133,88.089,0.86133372]
[1772733359954,0.80274553,88.133,88.085,0.86133372]
[1772733360154,0.80274553,88.133,88.083,11.35283526]
[1772733360155,0.86196733,88.131,88.088,0.85665417]
[1772733360363,0.86196733,88.131,88.09,0.85665417]
[1772733360571,1.13593765,88.156,88.094,3.69383402]
[1772733360769,1.13593765,88.156,88.091,0.99881574]
[1772733360770,11.68743856,88.19,88.103,0.85665417]
[1772733361083,29.48414434,88.189,88.111,0.85665417]
[1772733361270,11.68743856,88.18,88.111,0.85665417]
[1772733361570,1.42026079,88.179,88.111,0.85665417]
[1772733361959,1.13593765,88.178,88.111,0.85665417]
[1772733362655,0.86196733,88.177,88.111,0.85665417]
[1772733362972,0.86196733,88.187,88.117,4.82477569]
[1772733363169,0.86196733,88.187,88.122,0.85665417]
[1772733364246,11.9717617,88.2,88.122,0.85665417]
[1772733364247,0.86196733,88.185,88.122,0.85665417]
[1772733364448,0.86196733,88.179,88.115,3.69383402]
[1772733364767,0.86196733,88.177,88.116,0.85665417]
[1772733365071,0.86196733,88.174,88.117,11.34854795]
[1772733365252,0.86196733,88.172,88.117,11.34854795]
[1772733365454,0.86196733,88.17,88.117,11.34854795]
[1772733365765,0.86196733,88.168,88.118,0.85665417]
[1772733365963,0.86196733,88.166,88.118,0.85665417]
[1772733366349,0.86196733,88.164,88.118,0.85665417]
[1772733367563,0.86196733,88.162,88.119,11.34829038]
[1772733368170,0.86196733,88.162,88.108,11.34970717]
[1772733368471,0.86196733,88.16,88.109,0.85665417]
[1772733368673,0.86196733,88.158,88.109,0.85665417]
[1772733368973,0.86196733,88.158,88.11,0.85665417]
[1772733369155,0.86196733,88.162,88.111,0.85665417]
[1772733369468,11.34288404,88.161,88.115,0.85665417]
[1772733369659,11.34288404,88.161,88.116,0.85665417]
[1772733369860,0.86196733,88.16,88.116,0.85665417]
[1772733370662,11.34288404,88.161,88.116,0.85665417]
[1772733370864,0.86196733,88.16,88.116,0.85665417]
[1772733371549,0.86196733,88.158,88.118,0.85665417]
[1772733372466,11.34314136,88.159,88.118,0.85665417]
[1772733373173,0.86196733,88.158,88.118,0.85665417]
[1772733373872,0.86196733,88.17,88.121,0.99881574]
[1772733374070,0.86196733,88.17,88.122,0.99881574]
[1772733374374,0.86196733,88.17,88.124,0.28432314]
[1772733374550,0.86196733,88.17,88.126,0.85665417]
[1772733374760,11.34185484,88.169,88.126,0.85665417]
[1772733374971,3.69383402,88.19,88.126,0.85665417]
[1772733374972,0.86196733,88.204,88.129,4.82477569]
[1772733375173,11.33671167,88.209,88.144,0.99881574]
[1772733375473,0.86196733,88.218,88.164,0.85665417]
[1772733375654,12.198679,88.209,88.164,0.99881574]
[1772733375861,0.86196733,88.209,88.166,0.85665417]
[1772733376166,0.86196733,88.207,88.166,0.85665417]
[1772733376472,0.86196733,88.218,88.166,0.85665417]
[1772733376652,11.33608117,88.214,88.166,0.85665417]
[1772733376851,0.86196733,88.218,88.166,0.85665417]
[1772733376852,11.3351401,88.222,88.167,0.85665417]
[1772733377051,11.3351401,88.222,88.166,0.28432314]
[1772733377052,11.3348572,88.224,88.176,0.85665417]
[1772733377253,0.86196733,88.209,88.176,0.85665417]
[1772733377455,11.53664942,88.21,88.176,0.85665417]
[1772733377456,0.2,88.21,88.176,0.85665417]
[1772733377957,0.86196733,88.208,88.171,11.34147433]
[1772733378266,0.86196733,88.208,88.172,0.85665417]
[1772733378472,0.86196733,88.208,88.171,11.34147433]
[1772733379564,0.86196733,88.206,88.165,28.35592355]
[1772733379778,0.86196733,88.206,88.166,0.85665417]
[1772733380363,39.67939052,88.207,88.157,11.3433987]
[1772733380364,0.86196733,88.204,88.157,11.3433987]
[1772733380676,0.86196733,88.202,88.137,0.85665417]
[1772733380883,0.86196733,88.188,88.117,0.85665417]
[1772733381063,0.86196733,88.178,88.117,0.85665417]
[1772733381259,0.86196733,88.176,88.117,0.85665417]
[1772733381457,0.86196733,88.174,88.117,0.85665417]
[1772733381675,0.86196733,88.17,88.119,0.85665417]
[1772733381881,0.86196733,88.17,88.114,28.37211153]
[1772733381882,0.86196733,88.168,88.114,11.3488965]
[1772733382080,0.86196733,88.166,88.114,11.3488965]
[1772733382288,0.86196733,88.164,88.115,0.85665417]
[1772733382461,0.86196733,88.162,88.115,0.85665417]
[1772733382657,11.34159757,88.171,88.116,0.85665417]
[1772733382978,0.86196733,88.17,88.123,0.28432314]
[1772733383177,0.86196733,88.17,88.124,1.14097731]
[1772733383480,0.86196733,88.17,88.124,0.99881574]
[1772733383680,0.86196733,88.17,88.126,0.99881574]
[1772733383880,11.34185484,88.169,88.126,0.99881574]
[1772733384184,0.86196733,88.168,88.126,0.99881574]
[1772733384363,11.33979701,88.185,88.128,0.14216157]
[1772733384556,0.86196733,88.183,88.133,0.85665417]
[1772733384759,13.02337621,88.21,88.141,4.82477569]
[1772733384760,0.86196733,88.193,88.141,4.82477569]
[1772733384987,28.34418835,88.202,88.138,0.14216157]
[1772733384988,0.86196733,88.208,88.145,0.85665417]
[1772733385958,0.86196733,88.208,88.136,3.69383402]
[1772733385959,0.86196733,88.206,88.148,0.85665417]
[1772733387485,11.33696872,88.207,88.152,0.86883026]
[1772733387864,0.83860795,88.204,88.155,0.86883026]
[1772733389175,0.83860795,88.203,88.155,0.86883026]
[1772733390186,0.83860795,88.201,88.157,0.86883026]
[1772733392081,11.33786848,88.2,88.159,0.86617304]
[1772733392295,11.33733306,88.205,88.16,0.86617304]
[1772733392590,0.79412563,88.203,88.158,11.34327003]
[1772733392966,39.68039751,88.205,88.14,2.24717883]
[1772733392967,0.79412563,88.199,88.141,11.34545784]
[1772733393191,0.79412563,88.197,88.143,0.86617304]
[1772733393375,0.79412563,88.204,88.146,0.86617304]
[1772733394079,0.79412563,88.202,88.149,0.86617304]
[1772733395481,0.79412563,88.199,88.147,11.34468558]
[1772733395678,0.79412563,88.197,88.147,11.34468558]
[1772733395872,0.79412563,88.195,88.15,0.86617304]
[1772733396077,28.34370713,88.203,88.154,0.86617304]
[1772733396278,0.79412563,88.202,88.155,1.00833461]
[1772733396588,0.79412563,88.201,88.149,11.34436365]
[1772733396794,0.79412563,88.199,88.15,0.86617304]
[1772733397172,0.79412563,88.199,88.152,0.86617304]
[1772733397389,0.79412563,88.199,88.154,0.86617304]
[1772733397589,0.79412563,88.199,88.155,1.00833461]
[1772733397793,0.79412563,88.199,88.156,0.86617304]
[1772733398384,11.33812558,88.198,88.158,0.86617304]
[1772733398787,0.79412563,88.197,88.158,0.86617304]
[1772733399584,0.79412563,88.197,88.158,1.15049618]
[1772733399789,0.79412563,88.197,88.159,1.15049618]
[1772733399979,0.79412563,88.197,88.128,1.13471314]
[1772733399980,0.79412563,88.197,88.155,0.86617304]
[1772733400783,0.79412563,88.195,88.156,12.20970042]
[1772733401081,0.79412563,88.195,88.157,0.86617304]
[1772733402507,0.79412563,88.195,88.157,0.28432314]
[1772733402681,0.79412563,88.195,88.159,0.86617304]
[1772733402881,0.79412563,88.193,88.15,0.86617304]
[1772733403098,0.79412563,88.189,88.137,11.3459436]
[1772733403303,11.63288857,88.19,88.096,1.13512531]
[1772733403304,0.79412563,88.187,88.133,29.23233665]
[1772733403601,0.79412563,88.187,88.135,0.86617304]
[1772733403899,0.79412563,88.185,88.135,0.86617304]
[1772733404304,1.13593765,88.184,88.135,0.86617304]
[1772733404494,0.79412563,88.183,88.135,0.86617304]
[1772733404695,0.79412563,88.183,88.127,11.3472602]
[1772733404696,0.79412563,88.181,88.128,0.86617304]
[1772733404898,0.79412563,88.181,88.103,4.82477569]
[1772733404899,0.79412563,88.178,88.13,0.86617304]
[1772733405200,0.79412563,88.177,88.13,0.86617304]
[1772733406112,12.13508008,88.176,88.132,0.86617304]
[1772733406290,0.79412563,88.175,88.132,0.86617304]
[1772733406601,0.79412563,88.175,88.134,0.86617304]
[1772733406929,0.79412563,88.175,88.131,39.71360814]
[1772733406930,0.79412563,88.175,88.136,0.86617304]
[1772733407698,0.79412563,88.197,88.141,0.86617304]
[1772733407898,0.79412563,88.197,88.149,0.86617304]
[1772733408198,11.33722578,88.205,88.154,0.86617304]
[1772733408706,0.79412563,88.204,88.154,0.86617304]
[1772733409704,11.33748285,88.203,88.156,0.86617304]
[1772733410201,0.79412563,88.204,88.156,1.15049618]
[1772733410409,0.79412563,88.208,88.163,0.86617304]
[1772733410595,0.79412563,88.208,88.164,1.15049618]
[1772733410800,0.79412563,88.208,88.166,0.86617304]
[1772733412106,11.33696872,88.207,88.169,0.86617304]
[1772733412306,12.13109435,88.207,88.169,0.86617304]
[1772733412611,11.33671167,88.209,88.169,0.86617304]
[1772733412925,40.47261648,88.209,88.169,0.86617304]
[1772733413127,0.79412563,88.208,88.169,0.86617304]
[1772733413600,0.2,88.21,88.172,0.86617304]
[1772733413920,11.53666584,88.21,88.172,0.86617304]
[1772733414441,11.53666584,88.21,88.175,0.86617304]
[1772733414442,0.79412563,88.209,88.175,0.86617304]
[1772733416898,0.2,88.21,88.178,1.15049618]
[1772733417216,0.2,88.21,88.181,0.86617304]
[1772733417412,0.2,88.21,88.182,1.15049618]
[1772733417598,0.2,88.21,88.176,39.69334058]
[1772733417599,0.79412563,88.232,88.192,0.86617304]
[1772733418201,0.79412563,88.232,88.18,0.28432314]
[1772733418202,0.79412563,88.23,88.183,0.86617304]
[1772733419212,0.79412563,88.227,88.185,0.28432314]
[1772733419407,0.79412563,88.226,88.184,12.20609865]
[1772733419714,0.79412563,88.226,88.186,0.86617304]
[1772733420310,0.79412563,88.226,88.185,0.28432314]
[1772733420518,0.79412563,88.226,88.186,0.79729718]
[1772733420719,0.79994617,88.231,88.189,0.79729718]
[1772733421105,0.79994617,88.231,88.184,11.33992561]
[1772733421414,1.13593765,88.243,88.18,0.79729718]
[1772733421415,0.79994617,88.229,88.182,0.79729718]
[1772733421622,0.79994617,88.229,88.184,0.79729718]
[1772733421800,0.79994617,88.238,88.185,0.79729718]
[1772733421999,0.79994617,88.236,88.182,0.79729718]
[1772733422202,11.33298578,88.238,88.182,0.79729718]
[1772733422203,0.79994617,88.234,88.182,0.79729718]
[1772733422801,39.66545025,88.238,88.182,0.79729718]
[1772733422802,0.79994617,88.232,88.182,0.79729718]
[1772733423213,0.79994617,88.232,88.17,28.35409513]
[1772733423214,0.79994617,88.228,88.176,11.34091408]
[1772733423422,39.66949641,88.229,88.177,0.79729718]
[1772733423423,0.79994617,88.226,88.177,0.79729718]
[1772733423620,0.79994617,88.225,88.177,0.79729718]
[1772733423801,0.79994617,88.223,88.177,0.79729718]
[1772733424116,0.79994617,88.221,88.177,0.79729718]
[1772733424326,0.79994617,88.219,88.177,0.79729718]
[1772733425229,0.79994617,88.217,88.179,0.79729718]
[1772733427499,1.13593765,88.239,88.169,0.79729718]
[1772733427500,0.79994617,88.215,88.169,0.79729718]
[1772733427700,0.79994617,88.213,88.161,0.79729718]
[1772733427925,0.79994617,88.211,88.161,0.79729718]
[1772733428912,39.67534233,88.216,88.161,0.79729718]
[1772733428913,0.79994617,88.209,88.161,0.79729718]
[1772733429724,0.79994617,88.199,88.146,0.79729718]
[1772733429910,0.79994617,88.199,88.148,0.79729718]
[1772733430829,0.79994617,88.197,88.138,0.79729718]
[1772733431831,0.79994617,88.194,88.141,0.79729718]
[1772733433411,11.33851125,88.195,88.141,0.79729718]
[1772733433927,0.79994617,88.2,88.146,0.79729718]
[1772733434510,0.79994617,88.198,88.146,0.79729718]
[1772733436437,0.79994617,88.196,88.149,0.79729718]
[1772733437538,11.33825413,88.197,88.149,0.79729718]
[1772733438334,12.13845742,88.195,88.152,0.93945875]
[1772733438548,11.33851125,88.195,88.152,0.93945875]
[1772733440913,0.79994617,88.195,88.155,0.93945875]
[1772733442020,96.35221836,88.218,88.155,0.93945875]
[1772733442021,0.79994617,88.216,88.155,0.93945875]
[1772733442220,0.79994617,88.214,88.155,0.93945875]
[1772733442536,0.79994617,88.212,88.155,0.93945875]
[1772733442732,0.79994617,88.21,88.155,0.93945875]
[1772733442915,0.79994617,88.207,88.157,0.79729718]
[1772733443115,0.79994617,88.205,88.157,0.79729718]
[1772733443744,1.13593765,88.206,88.157,0.79729718]
[1772733443923,11.3355551,88.218,88.166,0.79729718]
[1772733444118,11.3355551,88.218,88.171,4.82477569]
[1772733444312,11.3355551,88.218,88.172,0.79729718]
[1772733444749,28.33577162,88.228,88.172,0.79729718]
[1772733444750,0.79994617,88.228,88.172,0.79729718]
[1772733445050,11.33439876,88.227,88.178,0.79729718]
[1772733445335,0.79994617,88.226,88.178,0.79729718]
[1772733447715,11.33158678,88.249,88.188,3.69383402]
[1772733447945,11.33158678,88.249,88.202,0.81620623]
[1772733448240,12.10642817,88.249,88.202,0.81620623]
[1772733448551,11.33158678,88.249,88.202,0.81620623]
[1772733448720,0.77484139,88.248,88.202,0.81620623]
[1772733448924,11.33158678,88.249,88.192,0.81620623]
[1772733448925,0.77484139,88.246,88.192,0.81620623]
[1772733449222,0.77484139,88.244,88.192,0.81620623]
[1772733449437,0.77484139,88.242,88.192,0.81620623]
[1772733449739,0.77484139,88.24,88.195,0.81620623]
[1772733450321,39.66410171,88.241,88.192,0.8150778]
[1772733450322,0.77879716,88.238,88.192,0.8150778]
[1772733450637,0.77879716,88.236,88.192,0.8150778]
[1772733450936,0.77879716,88.236,88.194,0.8150778]
[1772733451117,0.77879716,88.236,88.195,0.8150778]
[1772733451322,0.77879716,88.236,88.196,0.8150778]
[1772733451922,0.77879716,88.234,88.197,11.33825413]
[1772733452135,0.77879716,88.234,88.196,0.8150778]
[1772733452329,0.77879716,88.234,88.184,0.28432314]
[1772733452546,0.77879716,88.232,88.188,0.8150778]
[1772733454148,0.77879716,88.23,88.19,0.8150778]
[1772733456022,0.77879716,88.228,88.191,11.33902552]
[1772733456338,0.77879716,88.228,88.192,0.8150778]
[1772733457539,0.77879716,88.219,88.159,0.8150778]
[1772733457719,0.77879716,88.219,88.127,187.22979335]
[1772733457720,0.77879716,88.217,88.166,5.63985349]
[1772733458039,11.33581209,88.216,88.173,1.09940094]
[1772733458246,11.33581209,88.216,88.174,0.8150778]
[1772733458247,0.77879716,88.215,88.174,0.8150778]
[1772733460443,0.77879716,88.213,88.176,0.8150778]
[1772733462045,1.13593765,88.212,88.157,0.8150778]
[1772733462344,0.77879716,88.211,88.157,0.8150778]
[1772733462723,0.77879716,88.209,88.16,0.8150778]
[1772733463223,0.77879716,88.209,88.132,45.38646575]
[1772733463224,0.77879716,88.179,88.127,11.3472602]
[1772733463424,0.77879716,88.189,88.128,0.8150778]
[1772733463846,0.77879716,88.189,88.129,1.09940094]
[1772733464046,0.77879716,88.189,88.131,0.8150778]
[1772733464345,0.77879716,88.179,88.127,11.3472602]
[1772733464643,0.77879716,88.169,88.115,13.0211977]
[1772733464847,0.77879716,88.167,88.116,0.8150778]
[1772733465024,0.77879716,88.159,88.115,1.67243472]
[1772733465633,0.77879716,88.159,88.115,13.02123543]
[1772733465831,0.77879716,88.159,88.116,0.8150778]
[1772733466545,0.77879716,88.167,88.116,0.8150778]
[1772733466850,0.77879716,88.165,88.118,0.8150778]
[1772733467226,0.77879716,88.165,88.119,0.8150778]
[1772733467431,0.77879716,88.165,88.12,0.95723937]
[1772733467626,0.77879716,88.165,88.121,0.95723937]
[1772733467825,11.34224077,88.166,88.123,0.95723937]
[1772733468038,11.34224077,88.166,88.124,0.95723937]
[1772733468227,11.34224077,88.166,88.125,0.8150778]
[1772733469337,0.77879716,88.172,88.127,0.8150778]
[1772733470726,0.77879716,88.172,88.128,0.28432314]
[1772733470931,0.77879716,88.172,88.13,0.8150778]
[1772733471137,0.77879716,88.172,88.131,0.95723937]
[1772733471338,0.77879716,88.17,88.134,0.95723937]
[1772733471632,0.77879716,88.17,88.134,1.09940094]
[1772733473453,0.77879716,88.168,88.135,11.34623021]
[1772733473652,0.77879716,88.168,88.136,0.8150778]
[1772733474548,0.77879716,88.173,88.136,0.8150778]
[1772733476052,11.34146894,88.172,88.138,0.8150778]
[1772733476360,11.3398933,88.185,88.139,0.28432314]
[1772733476560,0.77879716,88.188,88.141,0.8150778]
[1772733476864,0.77879716,88.188,88.144,0.8150778]
[1772733477160,0.77879716,88.188,88.144,0.28432314]
[1772733477338,0.77879716,88.188,88.145,0.8150778]
[1772733477942,0.77879716,88.186,88.147,0.28432314]
[1772733478352,0.77879716,88.186,88.146,39.70684999]
[1772733479040,0.77879716,88.186,88.146,40.52192779]
[1772733479758,0.77879716,88.184,88.146,40.52192779]
[1772733480158,0.77879716,88.184,88.146,39.70684999]
[1772733480361,0.77879716,88.184,88.147,0.78305071]
[1772733480665,0.77879716,88.184,88.147,0.28432314]
[1772733480848,45.32204657,88.258,88.157,4.82477569]
[1772733480849,0.8101215,88.209,88.157,4.82477569]